bitfinex/quotes_SOLUSD_20240621
["timestamp","ask_amount","ask_price","bid_price","bid_amount"]
[1718990917818,3.08094963,129.61,129.5,6.1774]
[1718990917976,48.08094963,129.61,129.48,23.28]
[1718990918181,20.0,129.6,129.49,6.1778]
[1718990918479,23.08094963,129.6,129.49,29.4578]
[1718990918879,20.0,129.59,129.49,29.4578]
[1718990919102,3.08094963,129.6,129.5,23.28]
[1718990919289,3.08094963,129.6,129.53,6.1759]
[1718990919603,0.8413,129.62,129.54,45.0]
[1718990919905,0.8413,129.62,129.52,29.4564]
[1718990920082,0.8413,129.62,129.53,45.0]
[1718990921697,0.8413,129.62,129.53,51.1759]
[1718990922197,0.8413,129.62,129.53,45.0]
[1718990922788,3.92224963,129.62,129.47,15.6211]
[1718990922991,48.08094963,129.61,129.48,6.1784]
[1718990923306,3.08094963,129.6,129.48,6.1784]
[1718990923602,23.08094963,129.6,129.48,6.1784]
[1718990924385,23.08094963,129.6,129.49,45.0]
[1718990924791,8.01761481,129.59,129.49,23.28]
[1718990924994,8.01761481,129.59,129.51,6.1769]
[1718990924995,28.01761481,129.59,129.51,6.1769]
[1718990925189,3.08094963,129.6,129.51,6.1769]
[1718990925495,3.08094963,129.6,129.48,45.34]
[1718990925706,23.08094963,129.6,129.49,6.1779]
[1718990925904,23.08094963,129.6,129.5,68.28]
[1718990926105,23.08094963,129.6,129.52,6.1766]
[1718990926279,23.08094963,129.6,129.5,23.28]
[1718990926484,23.08094963,129.6,129.51,51.1769]
[1718990926877,23.08094963,129.6,129.51,68.28]
[1718990927205,20.0,129.6,129.54,6.1753]
[1718990927394,0.8413,129.62,129.55,45.0]
[1718990928003,0.8413,129.62,129.55,51.1752]
[1718990928904,0.8413,129.62,129.55,45.0]
[1718990929506,0.8413,129.62,129.52,6.3463]
[1718990929804,0.8413,129.62,129.5,12.3703]
[1718990929991,3.92224963,129.62,129.51,51.347]
[1718990930191,23.92224963,129.62,129.51,51.347]
[1718990930589,23.92224963,129.62,129.51,74.627]
[1718990930798,23.92224963,129.62,129.53,6.1761]
[1718990931001,3.92224963,129.62,129.51,45.17]
[1718990931218,3.92224963,129.62,129.51,51.3468]
[1718990931486,3.92224963,129.62,129.51,45.0]
[1718990932409,3.92224963,129.62,129.52,6.1764]
[1718990932625,3.92224963,129.62,129.53,45.0]
[1718990933699,3.92224963,129.62,129.53,51.1761]
[1718990934510,3.92224963,129.62,129.54,29.4556]
[1718990934711,3.92224963,129.62,129.55,45.0]
[1718990935093,3.92224963,129.62,129.55,51.1752]
[1718990935309,0.8413,129.62,129.55,51.1752]
[1718990935699,0.8413,129.62,129.55,45.0]
[1718990936301,0.8413,129.62,129.53,29.4559]
[1718990936302,0.8413,129.62,129.54,45.0]
[1718990936503,0.8413,129.62,129.54,51.1756]
[1718990937411,0.8413,129.62,129.54,74.4556]
[1718990937597,0.8413,129.62,129.54,68.28]
[1718990937792,6.96752317,129.62,129.55,6.175]
[1718990937992,20.0,129.61,129.55,6.175]
[1718990938193,0.8413,129.62,129.55,6.175]
[1718990939012,0.8413,129.62,129.56,6.1746]
[1718990940595,20.0,129.64,129.58,23.28]
[1718990940915,0.8413,129.65,129.59,51.1732]
[1718990941222,0.81259629,129.65,129.59,51.1732]
[1718990941907,0.81259629,129.65,129.59,45.0]
[1718990944015,0.81259629,129.65,129.56,21.6696]
[1718990944016,0.81259629,129.65,129.56,12.4075]
[1718990944205,0.81259629,129.65,129.57,45.0]
[1718990944396,0.81259629,129.65,129.56,45.0]
[1718990944915,0.81259629,129.65,129.53,22.6683]
[1718990945116,0.81259629,129.65,129.55,23.28]
[1718990945290,0.81259629,129.65,129.54,23.28]
[1718990945495,0.81259629,129.65,129.56,6.1743]
[1718990945695,0.81259629,129.65,129.57,6.1741]
[1718990946415,0.81259629,129.65,129.56,6.1745]
[1718990947824,0.81259629,129.65,129.57,45.0]
[1718990948039,0.81259629,129.65,129.6,6.1727]
[1718990948319,0.81259629,129.65,129.6,6.1725]
[1718990948531,20.0,129.67,129.6,6.1725]
[1718990948822,20.8126,129.69,129.6,6.1725]
[1718990950521,20.8126,129.69,129.61,68.45]
[1718990950819,0.8126,129.69,129.61,6.1722]
[1718990951117,20.0,129.68,129.61,6.1722]
[1718990951320,0.8126,129.69,129.6,6.1726]
[1718990955202,0.8126,129.69,129.59,6.1731]
[1718990955401,25.77,129.68,129.59,6.1731]
[1718990955721,20.0,129.67,129.59,6.1731]
[1718990956606,20.0,129.67,129.58,6.1735]
[1718990957015,20.0,129.67,129.59,6.1732]
[1718990957208,20.0,129.67,129.59,23.28]
[1718990957423,20.8126,129.69,129.6,51.1726]
[1718990957620,20.8126,129.69,129.54,30.8763]
[1718990957621,20.8126,129.69,129.59,6.173]
[1718990959118,8.01650174,129.68,129.59,6.173]
[1718990959307,8.01650174,129.68,129.6,6.1728]
[1718990959509,20.0,129.67,129.6,6.1728]
[1718990959821,45.77,129.67,129.55,15.4379]
[1718990960027,48.85094963,129.67,129.55,15.4379]
[1718990960225,3.08094963,129.66,129.58,6.1735]
[1718990960413,3.08094963,129.66,129.57,6.174]
[1718990960730,3.08094963,129.66,129.58,6.1737]
[1718990961536,3.08094963,129.66,129.56,6.1745]
[1718990961713,0.8126,129.65,129.56,6.1745]
[1718990962024,25.77,129.64,129.56,6.1745]
[1718990962216,25.77,129.64,129.55,6.175]
[1718990962533,25.77,129.64,129.56,6.1746]
[1718990962534,20.0,129.63,129.56,6.1746]
[1718990962842,25.77,129.61,129.5,6.1773]
[1718990963007,25.77,129.61,129.51,6.1768]
[1718990963209,25.77,129.61,129.5,6.1773]
[1718990963210,20.0,129.6,129.5,6.1773]
[1718990963408,20.0,129.6,129.51,6.1771]
[1718990963814,20.0,129.6,129.5,15.4431]
[1718990964018,20.0,129.6,129.48,56.6618]
[1718990964225,20.0,129.6,129.54,6.1756]
[1718990964628,20.0,129.6,129.48,56.6618]
[1718990964629,20.0,129.6,129.52,15.4416]
[1718990964832,0.8126,129.62,129.55,6.175]
[1718990965129,0.8126,129.62,129.53,45.0]
[1718990965332,0.8126,129.62,129.54,6.1755]
[1718990966429,0.8126,129.62,129.53,29.4559]
[1718990966618,0.8126,129.62,129.53,6.1759]
[1718990967639,0.8126,129.62,129.52,45.0]
[1718990967932,0.8126,129.62,129.49,38.7251]
[1718990967933,25.77,129.6,129.51,6.1767]
[1718990968127,20.0,129.59,129.51,6.1767]
[1718990970111,20.0,129.59,129.52,6.1766]
[1718990970327,20.0,129.59,129.51,6.1769]
[1718990970517,20.0,129.59,129.52,6.1764]
[1718990970717,20.0,129.59,129.51,6.177]
[1718990971236,20.0,129.59,129.52,6.1766]
[1718990971412,20.0,129.59,129.51,6.1769]
[1718990972135,20.0,129.59,129.5,6.1775]
[1718990972345,20.0,129.59,129.51,45.0]
[1718990972520,45.77,129.61,129.52,6.1763]
[1718990973045,45.77,129.61,129.51,45.0]
[1718990973207,45.77,129.61,129.52,6.1763]
[1718990974838,45.77,129.61,129.51,51.1769]
[1718990977328,45.77,129.61,129.51,6.1769]
[1718990977638,1.30682113,129.6,129.51,6.1769]
[1718990978015,1.30682113,129.6,129.49,23.45]
[1718990978214,1.30682113,129.6,129.5,51.1772]
[1718990978634,1.30682113,129.6,129.5,6.1772]
[1718990978844,0.8126,129.59,129.49,6.1778]
[1718990979022,25.77,129.58,129.49,6.1778]
[1718990979214,20.0,129.57,129.49,6.1778]
[1718990980433,20.0,129.57,129.5,6.1775]
[1718990981219,20.0,129.57,129.48,6.1782]
[1718990981430,20.0,129.57,129.49,45.0]
[1718990986233,20.0,129.57,129.48,6.1782]
[1718990987446,8.6,129.54,129.49,8.6]
[1718990988320,8.6,129.54,129.46,29.4658]
[1718990988521,8.6,129.51,129.46,8.6]
[1718990988721,0.8126,129.53,129.42,21.8242]
[1718990989045,8.6,129.49,129.42,21.8242]
[1718990989342,8.6,129.49,129.44,14.7804]
[1718990989547,8.6,129.5,129.44,14.7804]
[1718990989734,20.8126,129.53,129.44,14.7804]
[1718990989934,8.6,129.5,129.44,14.7804]
[1718990990337,8.6,129.5,129.45,45.0]
[1718990991054,20.8126,129.53,129.42,23.28]
[1718990991229,8.6,129.47,129.42,8.6]
[1718990991428,25.84,129.52,129.41,6.1816]
[1718990991635,20.0,129.51,129.42,6.1813]
[1718990992942,0.8126,129.53,129.41,6.1818]
[1718990992943,25.84,129.52,129.41,6.1818]
[1718990993143,0.8126,129.53,129.42,45.0]
[1718990993345,46.6526,129.53,129.41,68.28]
[1718990993549,46.6526,129.53,129.43,6.1808]
[1718990994155,46.6526,129.53,129.42,6.1812]
[1718990994451,46.6526,129.53,129.43,45.0]
[1718990995636,46.6526,129.53,129.42,45.0]
[1718990995971,46.6526,129.53,129.4,39.4623]
[1718990996359,46.6526,129.53,129.41,6.1818]
[1718990997034,46.6526,129.53,129.42,45.0]
[1718990997632,25.84,129.5,129.38,6.0962]
[1718990997837,25.84,129.5,129.38,6.1832]
[1718990997838,20.8126,129.49,129.38,6.1832]
[1718990998453,20.8126,129.49,129.39,6.1827]
[1718990998845,20.8126,129.49,129.4,29.4623]
[1718990999045,20.8126,129.49,129.41,45.0]
[1718991000255,20.8126,129.49,129.41,68.28]
[1718991000435,0.8126,129.49,129.42,23.45]
[1718991000637,0.8126,129.49,129.41,45.0]
[1718991001037,0.8126,129.49,129.4,45.0]
[1718991001268,0.8126,129.49,129.39,51.1827]
[1718991001448,0.8126,129.49,129.39,45.0]
[1718991001761,1.31666691,129.48,129.37,29.4635]
[1718991002352,21.31666691,129.48,129.35,6.1318]
[1718991002568,25.84,129.47,129.35,12.3162]
[1718991002758,0.8126,129.46,129.36,23.28]
[1718991002934,20.8126,129.46,129.36,29.4641]
[1718991003553,20.8126,129.46,129.37,6.1837]
[1718991003755,20.8126,129.46,129.4,23.28]
[1718991003964,1.31666691,129.48,129.43,29.4605]
[1718991004242,1.31666691,129.48,129.45,29.4595]
[1718991004539,1.31666691,129.48,129.46,45.0]
[1718991004755,1.31666691,129.48,129.46,74.4593]
[1718991005060,1.31666691,129.48,129.44,0.17]
[1718991005260,1.31666691,129.48,129.44,74.6302]
[1718991005636,0.8126,129.52,129.44,74.6302]
[1718991006074,0.8126,129.52,129.44,45.0]
[1718991006277,0.8126,129.52,129.43,45.0]
[1718991006441,26.6526,129.52,129.4,15.7847]
[1718991006644,0.8126,129.5,129.39,6.1828]
[1718991006864,0.8126,129.5,129.37,16.0239]
[1718991006865,25.84,129.49,129.38,6.1831]
[1718991007044,20.0,129.48,129.38,29.4631]
[1718991007244,20.0,129.48,129.39,29.4627]
[1718991007557,20.0,129.48,129.39,29.4625]
[1718991007949,20.0,129.48,129.39,23.28]
[1718991008434,20.0,129.48,129.38,6.1832]
[1718991008435,20.0,129.48,129.38,23.28]
[1718991008972,25.84,129.46,129.33,16.5224]
[1718991009176,20.0,129.45,129.33,22.7079]
[1718991009455,0.8126,129.44,129.32,6.1859]
[1718991009838,0.8126,129.44,129.32,29.4659]
[1718991010241,0.8126,129.44,129.33,6.1856]
[1718991010446,26.6526,129.44,129.33,6.1856]
[1718991010643,0.8126,129.42,129.3,6.1867]
[1718991010850,0.8126,129.42,129.31,6.1865]
[1718991011049,0.8126,129.42,129.31,29.4665]
[1718991011257,0.8126,129.42,129.28,21.5775]
[1718991011468,25.84,129.41,129.29,6.1873]
[1718991011643,20.0,129.4,129.29,6.1873]
[1718991011840,0.8126,129.39,129.29,6.1873]
[1718991012169,0.8126,129.39,129.27,6.1883]
[1718991012344,25.84,129.38,129.26,15.1641]
[1718991012545,20.0,129.37,129.28,6.1878]
[1718991012744,20.0,129.37,129.26,15.1641]
[1718991012944,20.0,129.37,129.26,6.1887]
[1718991013179,20.0,129.37,129.26,23.28]
[1718991013470,20.0,129.37,129.28,6.188]
[1718991013837,20.0,129.37,129.25,30.1831462]
[1718991014256,0.8126,129.36,129.27,6.1885]
[1718991014438,0.8126,129.36,129.26,6.1887]
[1718991014439,3.88569848,129.36,129.26,6.1887]
[1718991014840,3.88569848,129.36,129.25,7.0309462]
[1718991015255,3.88569848,129.36,129.26,6.1889]
[1718991015476,3.88569848,129.36,129.27,6.1884]
[1718991015644,3.88569848,129.36,129.28,6.188]
[1718991015843,3.88569848,129.36,129.27,6.1884]
[1718991016041,3.88569848,129.36,129.28,23.28]
[1718991016262,0.8126,129.36,129.3,23.28]
[1718991016474,0.8126,129.4,129.32,6.186]
[1718991016771,0.8126,129.4,129.29,45.17]
[1718991016943,3.88569848,129.4,129.29,45.17]
[1718991017147,3.88569848,129.4,129.29,45.0]
[1718991017344,3.88569848,129.4,129.26,6.1887]
[1718991017544,3.88569848,129.4,129.27,45.0]
[1718991017739,3.88569848,129.4,129.26,51.1889]
[1718991017740,45.0,129.39,129.26,51.1889]
[1718991018356,20.0,129.38,129.26,45.0]
[1718991018565,0.8126,129.37,129.26,51.189]
[1718991018747,0.8126,129.37,129.25,7.0309462]
[1718991019069,25.84,129.36,129.25,0.8416462]
[1718991019255,20.0,129.35,129.25,0.8416462]
[1718991020055,20.0,129.35,129.26,6.1888]
[1718991020246,20.0,129.35,129.28,6.1879]
[1718991020454,0.8126,129.37,129.29,45.0]
[1718991020647,0.8126,129.37,129.28,6.188]
[1718991020847,0.8126,129.37,129.29,51.3573]
[1718991021052,0.8126,129.37,129.29,45.0]
[1718991021548,0.8126,129.37,129.27,29.6383]
[1718991021870,3.88573754,129.37,129.26,6.3587]
[1718991022076,3.88573754,129.37,129.27,45.0]
[1718991022077,29.72573754,129.37,129.27,45.0]
[1718991022263,20.0,129.36,129.27,45.0]
[1718991022456,20.0,129.36,129.26,45.0]
[1718991022657,20.0,129.36,129.26,6.189]
[1718991022859,20.0,129.36,129.27,6.1881]
[1718991023062,20.0,129.36,129.28,6.1881]
[1718991023255,20.0,129.36,129.29,6.1875]
[1718991023454,3.88573754,129.37,129.29,25.84]
[1718991023455,0.8126,129.37,129.29,25.84]
[1718991023750,0.8126,129.37,129.31,29.4663]
[1718991023948,0.8126,129.37,129.3,45.17]
[1718991023949,0.8126,129.37,129.3,51.3567]
[1718991024169,0.8126,129.37,129.31,6.1866]
[1718991024474,268.4363128,129.43,129.32,0.17]
[1718991024475,0.8126,129.41,129.32,0.17]
[1718991024881,0.8126,129.41,129.32,45.0]
[1718991025083,3.89354963,129.41,129.32,45.0]
[1718991025384,3.08094963,129.41,129.36,6.1842]
[1718991025556,3.08094963,129.41,129.38,6.1829]
[1718991025750,3.08094963,129.41,129.39,45.0]
[1718991026055,3.08094963,129.41,129.36,29.464]
[1718991026375,3.08094963,129.41,129.37,45.0]
[1718991026555,3.08094963,129.41,129.33,6.1855]
[1718991026756,3.08094963,129.41,129.34,68.28]
[1718991026951,3.08094963,129.41,129.34,68.45]
[1718991027172,3.08094963,129.41,129.36,23.28]
[1718991027365,3.08094963,129.41,129.37,51.3535]
[1718991028080,3.08094963,129.41,129.34,6.1851]
[1718991028375,3.08094963,129.41,129.35,45.0]
[1718991029354,3.08094963,129.41,129.34,45.0]
[1718991029959,0.8126,129.44,129.35,43.28]
[1718991030164,0.8126,129.44,129.37,6.1837]
[1718991030381,0.8126,129.44,129.38,45.0]
[1718991030756,0.8126,129.44,129.39,6.1828]
[1718991030964,0.8126,129.44,129.38,51.1831]
[1718991031175,0.8126,129.44,129.38,45.0]
[1718991032078,0.8126,129.44,129.37,45.0]
[1718991032260,0.8126,129.44,129.34,6.1851]
[1718991032677,20.8126,129.44,129.34,6.1851]
[1718991033080,3.89354963,129.44,129.38,6.183]
[1718991033464,0.8126,129.44,129.4,6.1822]
[1718991033671,20.0,129.47,129.39,38.7369]
[1718991033672,0.8126,129.47,129.39,38.7369]
[1718991033985,0.8126,129.47,129.43,6.1809]
[1718991034365,0.8126,129.47,129.44,45.0]
[1718991034771,0.8126,129.47,129.43,45.0]
[1718991035664,0.8126,129.47,129.42,45.0]
[1718991035873,0.8126,129.47,129.41,45.0]
[1718991036063,0.8126,129.47,129.41,51.1816]
[1718991036266,0.8126,129.47,129.42,6.1812]
[1718991036475,260.4,129.49,129.41,45.0]
[1718991036663,260.4,129.49,129.42,6.181]
[1718991036859,260.4,129.49,129.43,51.1807]
[1718991037292,260.4,129.49,129.43,45.0]
[1718991037482,260.4,129.49,129.42,45.0]
[1718991037869,0.8126,129.5,129.42,45.0]
[1718991038076,3.89354963,129.5,129.42,51.1812]
[1718991038591,3.89354963,129.5,129.44,6.18]
[1718991038763,3.89354963,129.5,129.46,6.1791]
[1718991038968,3.08094963,129.5,129.47,6.1789]
[1718991039184,0.8126,129.54,129.46,6.1791]
[1718991039381,0.8126,129.54,129.44,6.18]
[1718991039585,0.8126,129.54,129.45,45.0]
[1718991039979,3.08094963,129.53,129.44,51.1803]
[1718991040386,3.08094963,129.53,129.45,6.1798]
[1718991040580,3.08094963,129.53,129.48,6.1785]
[1718991040767,0.8126,129.54,129.48,6.1785]
[1718991040968,0.8126,129.54,129.47,6.1788]
[1718991041270,0.8126,129.54,129.48,45.0]
[1718991041690,0.8126,129.54,129.47,6.1788]
[1718991041691,3.89354963,129.54,129.45,6.1796]
[1718991041991,3.89354963,129.54,129.41,21.8464]
[1718991042179,3.07207899,129.53,129.46,6.1794]
[1718991042375,3.07207899,129.53,129.41,21.8464]
[1718991042568,3.07207899,129.53,129.49,6.1776]
[1718991042767,0.8126,129.54,129.5,6.1774]
[1718991043188,0.8126,129.54,129.5,6.1775]
[1718991043391,0.8126,129.54,129.51,45.0]
[1718991043703,0.8126,129.57,129.52,6.1765]
[1718991043865,0.8126,129.62,129.53,51.1761]
[1718991044066,0.8126,129.62,129.53,6.1761]
[1718991044291,20.8126,129.62,129.54,45.0]
[1718991044497,0.8126,129.62,129.54,45.0]
[1718991044699,3.89354963,129.62,129.54,51.1754]
[1718991045489,3.89354963,129.62,129.54,45.0]
[1718991045991,3.89354963,129.62,129.53,51.1761]
[1718991046194,23.89354963,129.62,129.56,6.1746]
[1718991046363,3.89354963,129.62,129.57,45.0]
[1718991046564,3.08094963,129.62,129.58,6.1737]
[1718991046869,3.08094963,129.62,129.55,23.45]
[1718991046870,0.8126,129.65,129.57,6.1738]
[1718991047078,0.8126,129.65,129.58,45.0]
[1718991047583,0.8126,129.65,129.58,51.1733]
[1718991047981,0.8126,129.65,129.59,6.1732]
[1718991048168,0.8126,129.65,129.6,45.0]
[1718991048893,0.8126,129.65,129.59,45.0]
[1718991049096,0.8126,129.65,129.59,51.1732]
[1718991049594,0.8126,129.65,129.6,6.1726]
[1718991051474,3.89354963,129.69,129.61,51.1722]
[1718991051878,3.89354963,129.69,129.62,6.1718]
[1718991052079,3.89354963,129.69,129.63,45.0]
[1718991052279,3.89354963,129.69,129.62,6.1716]
[1718991052598,3.89354963,129.69,129.59,15.4331]
[1718991052777,3.89354963,129.69,129.62,6.1715]
[1718991053590,3.89354963,129.69,129.61,6.1721]
[1718991054999,3.89354963,129.69,129.62,6.1716]
[1718991055503,3.89354963,129.69,129.61,6.1721]
[1718991056703,3.89354963,129.69,129.62,6.1717]
[1718991057012,3.89354963,129.69,129.56,59.557546]
[1718991057319,3.89354963,129.69,129.59,6.1731]
[1718991057320,3.08094963,129.68,129.59,6.1731]
[1718991057487,3.08094963,129.68,129.56,23.28]
[1718991057677,3.08094963,129.68,129.54,20.841647]
[1718991057678,3.08094963,129.68,129.61,6.172]
[1718991058307,3.08094963,129.68,129.62,6.1718]
[1718991058520,3.08094963,129.68,129.61,6.1721]
[1718991059476,3.08094963,129.68,129.6,23.28]
[1718991059818,3.08094963,129.68,129.66,6.1699]
[1718991059994,3.08094963,129.68,129.67,6.1695]
[1718991060186,3.08094963,129.68,129.67,51.1695]
[1718991060407,3.08094963,129.68,129.67,45.0]
[1718991060723,3.08094963,129.68,129.66,6.1698]
[1718991060881,3.08094963,129.68,129.63,38.6275]
[1718991061083,3.08094963,129.68,129.64,60.5962]
[1718991061308,3.08094963,129.68,129.67,6.1695]
[1718991061486,3.08094963,129.68,129.67,51.1695]
[1718991063004,0.8416462,129.71,129.67,51.1695]
[1718991063212,0.8416462,129.71,129.68,45.0]
[1718991063395,0.8416462,129.71,129.68,51.169]
[1718991063786,0.8416462,129.71,129.69,6.1685]
[1718991066312,0.8416462,129.71,129.7,6.168]
[1718991066626,0.8416462,129.71,129.7,51.168]
[1718991066983,0.8416462,129.71,129.7,51.338]
[1718991067184,0.8416462,129.71,129.7,74.538]
[1718991067387,0.8416462,129.71,129.7,94.708]
[1718991067710,9.69155804,129.83,129.76,6.1649]
[1718991067887,1.6543462,129.83,129.76,6.1649]
[1718991068085,1.6543462,129.83,129.78,6.1642]
[1718991068291,1.6543462,129.83,129.79,45.0]
[1718991068592,1.6543462,129.83,129.78,6.1642]
[1718991068796,1.6543462,129.83,129.79,45.0]
[1718991069110,1.6543462,129.83,129.78,45.0]
[1718991069111,0.8416462,129.83,129.78,45.0]
[1718991069496,0.8416462,129.83,129.77,68.2]
[1718991069690,0.8416462,129.83,129.82,6.1623]
[1718991069908,0.8416462,129.83,129.82,51.1623]
[1718991070410,0.8416462,129.83,129.82,51.3323]
[1718991070612,0.8416462,129.83,129.82,51.5023]
[1718991070818,0.8416462,129.83,129.81,6.1628]
[1718991071117,0.8416462,129.83,129.82,6.1623]
[1718991071336,0.8416462,129.83,129.82,74.5323]
[1718991071611,8.03657617,129.93,129.83,37.7114]
[1718991071914,261.2416462,129.96,129.85,6.1607]
[1718991072114,269.28491683,129.96,129.86,45.0]
[1718991072914,3.08094963,129.95,129.87,0.17]
[1718991073096,3.08094963,129.95,129.9,6.1585]
[1718991073293,0.8416462,129.96,129.91,45.0]
[1718991073519,0.8416462,129.96,129.91,51.1579]
[1718991073711,0.8416462,129.96,129.87,0.34]
[1718991073913,2.14846733,129.96,129.86,20.17]
[1718991074220,2.14846733,129.96,129.91,6.158]
[1718991074413,0.8416462,129.96,129.92,45.0]
[1718991074713,0.8416462,129.96,129.87,45.17]
[1718991074920,0.8416462,129.96,129.91,6.158]
[1718991075099,0.8416462,129.96,129.92,45.0]
[1718991075412,0.8416462,129.96,129.87,0.17]
[1718991075717,0.8416462,129.96,129.89,6.1589]
[1718991076019,0.8416462,129.96,129.9,51.1584]
[1718991076197,0.8416462,129.96,129.9,6.1585]
[1718991076397,0.8416462,129.96,129.91,45.0]
[1718991076614,0.8416462,129.96,129.87,15.3989]
[1718991076813,0.8416462,129.96,129.88,45.34]
[1718991077123,0.8416462,129.96,129.94,6.1564]
[1718991077304,0.8416462,129.96,129.95,45.0]
[1718991077613,0.8416462,129.96,129.95,51.3262]
[1718991077813,0.8416462,129.96,129.95,51.4962]
[1718991078316,0.8416462,129.96,129.95,45.0]
[1718991078705,0.8416462,129.96,129.94,45.0]
[1718991079221,0.8416462,129.96,129.89,12.3108]
[1718991079414,0.8416462,129.96,129.86,66.2011]
[1718991079608,0.8416462,129.96,129.88,15.3987]
[1718991079811,0.8416462,129.96,129.89,20.0]
[1718991080127,0.8416462,129.96,129.94,6.1564]
[1718991080305,0.8416462,129.96,129.93,6.1569]
[1718991081315,0.8416462,129.96,129.94,51.1565]
[1718991081509,0.8416462,129.96,129.94,45.0]
[1718991081717,0.8416462,129.96,129.93,51.1568]
[1718991081917,0.8416462,129.96,129.91,6.158]
[1718991082099,0.8416462,129.96,129.9,0.17]
[1718991082305,0.8416462,129.96,129.9,6.3281]
[1718991082500,0.8416462,129.96,129.85,6.646]
[1718991082714,0.8416462,129.96,129.86,6.1601]
[1718991082928,0.8416462,129.96,129.85,6.646]
[1718991082929,0.8416462,129.96,129.87,6.1599]
[1718991083104,3.92259583,129.96,129.86,6.1603]
[1718991083305,3.92259583,129.96,129.85,6.1608]
[1718991083531,23.92259583,129.96,129.86,6.1604]
[1718991083705,23.92259583,129.96,129.84,23.2]
[1718991083911,20.8416462,129.96,129.85,15.402]
[1718991084114,0.8416462,129.96,129.83,15.4045]
[1718991084413,3.91474468,129.96,129.86,6.1603]
[1718991084617,23.91474468,129.96,129.86,6.1603]
[1718991084817,3.07313754,129.95,129.81,21.5001]
[1718991085024,23.07313754,129.95,129.81,6.0941]
[1718991085329,23.07313754,129.95,129.89,6.1589]
[1718991085718,3.07313754,129.95,129.89,6.1589]
[1718991085908,3.07313754,129.95,129.86,6.1602]
[1718991086109,3.07313754,129.95,129.82,38.478038]
[1718991086110,3.07313754,129.95,129.87,45.0]
[1718991086527,3.07313754,129.95,129.87,51.1599]
[1718991086823,3.07313754,129.95,129.87,45.0]
[1718991087835,3.07313754,129.95,129.85,0.17]
[1718991088008,3.07313754,129.95,129.84,0.34]
[1718991088212,3.07313754,129.95,129.88,6.1592]
[1718991088415,3.07313754,129.95,129.87,6.1598]
[1718991088730,3.07313754,129.95,129.86,0.34]
[1718991088917,20.8416462,129.96,129.88,6.1593]
[1718991089107,20.8416462,129.96,129.87,6.1598]
[1718991089304,0.8416462,129.96,129.88,45.0]
[1718991089522,3.92259583,129.96,129.85,6.1605]
[1718991089712,3.08094963,129.95,129.85,6.1605]
[1718991089917,23.08094963,129.95,129.85,6.1605]
[1718991090116,23.08094963,129.95,129.86,6.3304]
[1718991090330,23.08094963,129.95,129.86,6.1604]
[1718991090536,20.8416462,129.96,129.89,23.2]
[1718991090828,0.8416462,129.96,129.9,68.54]
[1718991091028,0.8416462,129.96,129.94,6.1562]
[1718991091227,0.8416462,129.96,129.95,51.92596062]
[1718991091413,0.8416462,129.96,129.95,74.6962]
[1718991092610,0.8416462,129.96,129.95,51.4962]
[1718991094139,0.8416462,129.96,129.91,15.3941]
[1718991094312,0.8416462,129.96,129.92,23.2]
[1718991094643,0.8416462,129.96,129.92,6.1571]
[1718991094934,0.8416462,129.96,129.91,6.1576]
[1718991095311,0.8416462,129.96,129.9,6.1583]
[1718991095731,0.8416462,129.96,129.88,45.1146]
[1718991095906,0.8416462,129.96,129.9,6.1585]